[Event "WYCC 2018 O16"]
[Site "Halkidiki"]
[Date "2018.10.20"]
[Round "1"]
[White "Alcon Llosada, Alex"]
[Black "Olsen, Filip Boe"]
[Result "0-1"]
[ECO "D02"]
[WhiteElo "1928"]
[BlackElo "2335"]
[Annotator "NA"]
[PlyCount "66"]
[EventDate "2018.10.20"]
[EventType "swiss"]
[EventCountry "GRE"]
[SourceTitle "playchess.com"]
[Source "ChessBase"]
[SourceQuality "1"]
[TimeControl "40/5400+30:1800+30"]

1. d4 {[%emt 0:00:00]} d5 {[%emt 0:00:00]} 2. Nf3 {[%emt 0:00:00]} Nf6 {[%emt 0:00:00]} 3. g3 {[%emt 0:04:13]} Bf5 {[%emt 0:03:23]} 4. Bg2 {[%emt 0:01:55]} e6 {[%emt 0:00:26]} 5. O-O {[%emt 0:02:23]} Be7 {[%emt 0:00:58]} 6. c4 {[%emt 0:03:06]} c6 {[%emt 0:00:59]} 7. Nc3 {[%emt 0:04:47]} h6 {[%emt 0:02:52]} 8. b3 {[%emt 0:05:14]} O-O {[%emt 0:01:12]} 9. e3 {[%emt 0:04:15]} Nbd7 {[%emt 0:02:57]} 10. Bb2 {[%emt 0:03:03]} Ne4 {[%emt 0:07:37]} 11. Qe2 {[%emt 0:13:54]} a5 $11 {[%emt 0:03:41]} 12. a3 {[%emt 0:16:04]} Ndf6 {[%emt 0:08:24]} 13. Na4 {[%emt 0:05:51]} b5 {[%emt 0:10:42]} 14. Nc3 {[%emt 0:07:31]} Nxc3 {[%emt 0:06:02]} 15. Bxc3 {[%emt 0:01:27]} a4 {[%emt 0:07:26]} 16. Ne5 {[%emt 0:04:07]} Qc7 {[%emt 0:03:06]} 17. cxb5 {[%emt 0:04:54]} cxb5 {[%emt 0:01:05]} 18. Rfc1 {[%emt 0:02:29]} axb3 {[%emt 0:04:00]} 19. Bb2 {[%emt 0:06:08]} Qb7 {[%emt 0:04:13]} 20. Nd3 {[%emt 0:01:09]} b4 {[%emt 0:05:22]} 21. a4 {[%emt 0:00:31]} Ne4 {[%emt 0:04:24]} 22. Bxe4 {[%emt 0:02:12]} Bxe4 {[%emt 0:00:24]} 23. Qd1 {[%emt 0:01:24]} Qa6 {[%emt 0:02:03]} 24. Nc5 {[%emt 0:01:03]} Bxc5 {[%emt 0:00:18]} 25. Rxc5 {[%emt 0:01:20]} Rfc8 {[%emt 0:01:31]} 26. Qxb3 {[%emt 0:00:49]} Rxc5 {[%emt 0:05:10]} 27. dxc5 {[%emt 0:00:07]} Qc4 {[%emt 0:02:30]} 28. Qd1 {[%emt 0:02:13]} Qxc5 {[%emt 0:00:42]} 29. Rc1 {[%emt 0:00:07]} Qb6 {[%emt 0:00:54]} 30. Qd4 {[%emt 0:00:43]} Qxd4 {[%emt 0:00:09]} 31. Bxd4 {[%emt 0:00:04]} Rxa4 {[%emt 0:00:44]} 32. Rc8+ {[%emt 0:00:21]} Kh7 {[%emt 0:00:08]} 33. Rb8 {[%emt 0:00:06]} Bc2 {[%emt 0:01:04]} 0-1

[Event "WYCC 2018 O16"]
[Site "Halkidiki"]
[Date "2018.10.20"]
[Round "1"]
[White "Araoz Andrade, Ivan Alexander"]
[Black "Szpar, Milosz"]
[Result "0-1"]
[ECO "B30"]
[WhiteElo "1919"]
[BlackElo "2328"]
[Annotator "NA"]
[PlyCount "120"]
[EventDate "2018.10.20"]
[EventType "swiss"]
[EventCountry "GRE"]
[SourceTitle "playchess.com"]
[Source "ChessBase"]
[SourceQuality "1"]
[TimeControl "40/5400+30:1800+30"]

1. e4 {[%emt 0:00:00]} c5 {[%emt 0:00:00]} 2. Nf3 {[%emt 0:00:00]} Nc6 {[%emt 0:00:00]} 3. Bb5 {[%emt 0:00:00]} d6 {[%emt 0:00:39]} 4. d4 {[%emt 0:04:27]} cxd4 {[%emt 0:00:14]} 5. Nxd4 {[%emt 0:00:19]} Bd7 {[%emt 0:01:06]} 6. O-O {[%emt 0:04:42]} Nf6 {[%emt 0:05:43]} 7. Re1 {[%emt 0:05:09] B51: Sicilian: Moscow Variation (3 Bb5+) without 3...Bd7} e6 {[%emt 0:07:43]} (7... g6 8. Bxc6 bxc6 9. Nf3 e5 10. c4 Qe7 11. b3 Bg4 12. Nc3 Nd7 13. h3 Bxf3 14. Qxf3 {½-½ (41) Paichadze,L (2491)-Mamedyarov,S (2752) Plovdiv 2012}) 8. c4 {[%emt 0:25:53]} a6 {[%emt 0:06:42]} 9. Bxc6 {[%emt 0:02:35]} bxc6 $146 {[%emt 0:01:43]} ({Predecessor:} 9... Bxc6 10. Nxc6 bxc6 11. Nc3 Be7 12. Bg5 O-O 13. Qd2 Qc7 14. Rac1 Rad8 {0-1 (32) Andersen,C (1766)-Jacobsen,F (2028) Helsingor 2016}) 10. Nc3 {[%emt 0:01:19]} Be7 {[%emt 0:03:08]} 11. e5 {[%emt 0:14:20]} dxe5 {[%emt 0:00:46]} 12. Nf3 {[%emt 0:01:19]} e4 {[%emt 0:14:20]} 13. Ne5 {[%emt 0:03:58]} Qc7 {[%emt 0:07:04]} 14. Nxd7 {[%emt 0:11:59]} Qxd7 {[%emt 0:05:40]} 15. Qxd7+ {[%emt 0:05:36]} Nxd7 {[%emt 0:00:48]} 16. Nxe4 {[%emt 0:01:12]} Ne5 {[%emt 0:01:34]} 17. b3 {[%emt 0:05:31]} Nd3 {[%emt 0:08:23]} 18. Rd1 {[%emt 0:01:48]} O-O-O {[%emt 0:04:31]} 19. Kf1 {[%emt 0:04:34]} f5 {[%emt 0:01:51]} 20. Ng3 {[%emt 0:00:31]} Rd7 {[%emt 0:05:29]} 21. Ke2 {[%emt 0:03:17]} Rhd8 {[%emt 0:01:43]} 22. Rb1 {[%emt 0:00:45]} g6 {[%emt 0:04:12]} 23. f3 {[%emt 0:01:14]} e5 {[%emt 0:03:41]} 24. Nh1 {[%emt 0:00:45]} Kb7 {[%emt 0:03:30]} 25. h3 {[%emt 0:00:42]} a5 {[%emt 0:03:24]} 26. g3 {[%emt 0:00:26]} g5 {[%emt 0:01:55]} 27. Be3 {[%emt 0:00:33]} f4 {[%emt 0:01:02]} 28. Bd2 {[%emt 0:00:01]} Bb4 {[%emt 0:01:29]} 29. Bxb4 {[%emt 0:00:37]} axb4 {[%emt 0:02:01]} 30. g4 {[%emt 0:00:13]} Kb6 {[%emt 0:01:16]} 31. Ra1 {[%emt 0:01:11]} Rd4 {[%emt 0:00:44]} 32. Kf1 {[%emt 0:00:33]} Kc5 {[%emt 0:01:32]} 33. Rd2 {[%emt 0:00:28]} e4 {[%emt 0:00:53]} 34. fxe4 {[%emt 0:00:24]} Rxe4 {[%emt 0:00:34]} 35. Nf2 {[%emt 0:00:36]} Red4 {[%emt 0:00:26]} 36. Re2 {[%emt 0:00:28]} Nxf2 {[%emt 0:01:37]} 37. Kxf2 {[%emt 0:00:07]} Rd2 {[%emt 0:00:13]} 38. Rae1 {[%emt 0:00:24]} R8d3 {[%emt 0:00:22]} 39. Kg1 {[%emt 0:01:01]} Rxe2 {[%emt 0:00:33]} 40. Rxe2 {[%emt 0:00:00]} Re3 {[%emt 0:00:00]} 41. Rh2 {[%emt 0:05:47]} h6 {[%emt 0:04:39]} 42. Kf1 {[%emt 0:01:09]} Rc3 {[%emt 0:06:55]} 43. Ke1 {[%emt 0:01:42]} Kd4 {[%emt 0:01:19]} 44. h4 {[%emt 0:03:34]} Rc1+ {[%emt 0:00:21]} 45. Kd2 {[%emt 0:00:45]} Ra1 {[%emt 0:00:06]} 46. Rh3 {[%emt 0:01:31]} Rxa2+ {[%emt 0:00:09]} 47. Kd1 {[%emt 0:00:44]} Rg2 {[%emt 0:01:07]} 48. hxg5 {[%emt 0:00:47]} hxg5 {[%emt 0:00:06]} 49. Rh6 {[%emt 0:00:45]} Kc5 {[%emt 0:00:59]} 50. Rf6 {[%emt 0:01:04]} Rxg4 {[%emt 0:00:22]} 51. Kd2 {[%emt 0:01:07]} Rg3 {[%emt 0:00:14]} 52. Kc2 {[%emt 0:00:09]} Rc3+ {[%emt 0:01:33]} 53. Kb2 {[%emt 0:00:01]} Kd4 {[%emt 0:01:45]} 54. Rg6 $19 {[%emt 0:03:48]} f3 {[%emt 0:01:45]} 55. Rxg5 {[%emt 0:00:39]} f2 {[%emt 0:00:19]} 56. Rf5 {[%emt 0:00:29]} Ke3 {[%emt 0:00:05]} 57. c5 {[%emt 0:02:35]} Ke2 {[%emt 0:00:09]} 58. Re5+ {[%emt 0:00:43]} Re3 {[%emt 0:00:06]} 59. Rh5 {[%emt 0:00:07]} f1=Q {[%emt 0:00:11]} 60. Rh2+ {[%emt 0:00:04]} Kd3 {[%emt 0:00:31]} 0-1

[Event "WYCC 2018 O16"]
[Site "Halkidiki"]
[Date "2018.10.21"]
[Round "2"]
[White "Baenziger, Fabian"]
[Black "Arya Nirag Shah"]
[Result "1-0"]
[ECO "A05"]
[WhiteElo "2355"]
[BlackElo "1952"]
[Annotator "RC"]
[PlyCount "115"]
[EventDate "2018.10.20"]
[EventType "swiss"]
[EventCountry "GRE"]
[SourceTitle "playchess.com"]
[Source "ChessBase"]
[SourceQuality "1"]
[TimeControl "40/5400+30:1800+30"]

1. Nf3 {[%emt 0:00:00]} Nf6 {[%emt 0:00:00]} 2. g3 {[%emt 0:00:01]} d5 {[%emt 0:00:00]} 3. Bg2 {[%emt 0:00:04]} Bg4 {[%emt 0:00:25]} 4. O-O {[%emt 0:00:16]} e6 {[%emt 0:00:17]} 5. c4 {[%emt 0:00:19]} c6 {[%emt 0:00:34]} 6. cxd5 {[%emt 0:00:23]} cxd5 {[%emt 0:00:12]} 7. Qb3 {[%emt 0:01:40]} Bxf3 {[%emt 0:08:56]} 8. Bxf3 {[%emt 0:02:37]} Qd7 {[%emt 0:00:13]} 9. d3 {[%emt 0:01:10]} Nc6 {[%emt 0:00:20]} 10. Bg2 {[%emt 0:00:22]} Rc8 {[%emt 0:14:55]} 11. Nc3 {[%emt 0:02:16]} Be7 {[%emt 0:02:37]} 12. Bd2 {[%emt 0:04:34]} O-O {[%emt 0:00:25]} 13. Rfc1 {[%emt 0:04:03]} Rfd8 {[%emt 0:05:57]} 14. Qd1 {[%emt 0:08:33]} Nd4 {[%emt 0:13:48]} 15. e3 {[%emt 0:14:41]} Nc6 {[%emt 0:00:48]} 16. Ne2 {[%emt 0:14:23]} Ne8 {[%emt 0:06:52]} 17. a3 {[%emt 0:02:31]} Bf6 {[%emt 0:01:33]} 18. Rab1 {[%emt 0:01:36]} Nd6 {[%emt 0:06:14]} 19. b4 {[%emt 0:04:04]} Ne5 {[%emt 0:03:38]} 20. Qb3 {[%emt 0:02:31]} Qb5 {[%emt 0:10:32]} 21. Nf4 {[%emt 0:02:04]} g6 {[%emt 0:04:18]} 22. a4 {[%emt 0:02:44]} Qe8 {[%emt 0:00:23]} 23. Ne2 {[%emt 0:01:44]} Nd7 {[%emt 0:00:25]} 24. g4 {[%emt 0:04:29]} Bg7 {[%emt 0:04:12]} 25. f4 {[%emt 0:00:50]} Qe7 {[%emt 0:02:20]} 26. h3 {[%emt 0:01:50]} Nf8 {[%emt 0:01:42]} 27. Qa3 {[%emt 0:06:12]} Qd7 {[%emt 0:01:44]} 28. Qb3 {[%emt 0:02:11]} Rxc1+ {[%emt 0:00:59]} 29. Bxc1 {[%emt 0:01:27]} Rc8 {[%emt 0:00:24]} 30. Bb2 {[%emt 0:00:02]} Bxb2 {[%emt 0:02:00]} 31. Rxb2 {[%emt 0:00:05]} Rc7 {[%emt 0:00:16]} 32. Rc2 {[%emt 0:06:14]} Qc8 {[%emt 0:01:43]} 33. Rd2 {[%emt 0:01:01]} f5 {[%emt 0:03:37]} 34. Qb2 {[%emt 0:00:37]} Nd7 {[%emt 0:01:00]} 35. Nd4 {[%emt 0:01:52]} Kf7 {[%emt 0:00:32]} 36. Nf3 {[%emt 0:00:34]} h6 {[%emt 0:01:44]} 37. Ne5+ {[%emt 0:01:11]} Nxe5 {[%emt 0:00:04]} 38. fxe5 {[%emt 0:00:04]} Ne8 {[%emt 0:00:59]} 39. gxf5 {[%emt 0:00:25]} Rc1+ {[%emt 0:00:37]} 40. Kh2 {[%emt 0:00:00]} gxf5 {[%emt 0:00:00]} 41. e4 {[%emt 0:00:06]} fxe4 {[%emt 0:11:37]} 42. dxe4 {[%emt 0:00:57]} d4 {[%emt 0:04:22]} 43. Qxd4 {[%emt 0:00:44]} Ke7 {[%emt 0:01:56]} 44. Qf2 {[%emt 0:06:46]} Qc7 {[%emt 0:03:52]} 45. Qh4+ {[%emt 0:01:35]} Kf7 {[%emt 0:00:16]} 46. Qf4+ {[%emt 0:02:40]} Ke7 {[%emt 0:00:39]} 47. Qh4+ {[%emt 0:00:30]} Kf7 {[%emt 0:00:06]} 48. Rf2+ {[%emt 0:00:36]} Kg7 {[%emt 0:01:48]} 49. Qg4+ {[%emt 0:00:45]} Kh7 {[%emt 0:00:37]} 50. Qxe6 {[%emt 0:00:58]} Qb6 {[%emt 0:00:31]} 51. Rf7+ {[%emt 0:04:06]} Ng7 {[%emt 0:00:15]} 52. Qf5+ {[%emt 0:00:41]} Qg6 {[%emt 0:00:29]} 53. Rxb7 {[%emt 0:00:09]} Rc4 {[%emt 0:00:37]} 54. e6 {[%emt 0:01:25]} Rc2 {[%emt 0:00:44]} 55. Qxg6+ {[%emt 0:00:27]} Kxg6 {[%emt 0:00:04]} 56. e7 {[%emt 0:00:05]} Kf7 {[%emt 0:00:25]} 57. e8=Q+ {[%emt 0:00:09]} Kxe8 {[%emt 0:00:04]} 58. Rxg7 {[%emt 0:00:05]} 1-0

[Event "WYCC 2018 O16"]
[Site "Halkidiki"]
[Date "2018.10.21"]
[Round "3"]
[White "Vlachos, Anatole"]
[Black "Olsen, Filip Boe"]
[Result "0-1"]
[ECO "D00"]
[WhiteElo "2435"]
[BlackElo "2335"]
[Annotator "NA"]
[PlyCount "82"]
[EventDate "2018.10.20"]
[EventType "swiss"]
[EventCountry "GRE"]
[SourceTitle "playchess.com"]
[Source "ChessBase"]
[SourceQuality "1"]
[TimeControl "40/5400+30:1800+30"]

1. d4 {[%emt 0:00:00]} d5 {[%emt 0:00:00]} 2. Bf4 {[%emt 0:00:00]} c5 {[%emt 0:00:23]} 3. e3 {[%emt 0:00:00]} Nc6 {[%emt 0:00:26]} 4. c3 {[%emt 0:00:05]} Nf6 {[%emt 0:00:19]} 5. Nd2 {[%emt 0:00:07] D00: 1 d4 d5: Unusual lines} cxd4 {[%emt 0:00:41]} (5... Bf5 6. Ngf3 e6 7. Nh4 Be4 8. Nhf3 Bf5 9. Nh4 Be4 10. Qb3 Qc8 11. Nhf3 Bf5 12. Be2 Be7 13. O-O O-O 14. h3 h6 15. Rfe1 c4 16. Qd1 b5 {1-0 (66) Grachev,B (2626)-Najer,E (2663) Moscow 2018}) 6. exd4 {[%emt 0:00:11]} Bf5 {[%emt 0:00:48]} 7. Qb3 {[%emt 0:00:12]} Qc8 {[%emt 0:01:06]} 8. Ngf3 {[%emt 0:00:23]} e6 {[%emt 0:00:17]} 9. Nh4 {[%emt 0:07:04]} Be4 {[%emt 0:03:33]} 10. f3 {[%emt 0:04:59]} Bg6 {[%emt 0:00:13]} 11. g4 $146 {[%emt 0:01:18]} ({Predecessor:} 11. Nxg6 hxg6 12. g4 a6 {1-0 (34) Kaboodi,B (2062)-Daneshvar,B (2140) Teheran 2017}) 11... Be7 {[%emt 0:02:24]} 12. Nxg6 {[%emt 0:00:32]} hxg6 {[%emt 0:00:17]} 13. Bd3 {[%emt 0:00:22]} a6 {[%emt 0:07:54]} 14. Kf1 {[%emt 0:08:11]} Qd7 {[%emt 0:02:49]} 15. Kg2 {[%emt 0:03:10]} b5 {[%emt 0:08:41]} 16. a4 {[%emt 0:07:46]} b4 {[%emt 0:00:37]} 17. cxb4 {[%emt 0:03:24]} Nxb4 {[%emt 0:02:28]} 18. Rac1 {[%emt 0:03:18]} (18. Rhc1 $11) 18... Bd6 {[%emt 0:04:11]} 19. Bxd6 {[%emt 0:01:49]} Qxd6 {[%emt 0:00:14]} 20. Rc5 {[%emt 0:02:01] [#]} Rb8 $1 {[%emt 0:03:45]} 21. Bb5+ {[%emt 0:00:52]} axb5 $17 {[%emt 0:00:17]} 22. Qxb4 {[%emt 0:00:07]} Nd7 {[%emt 0:08:20]} 23. axb5 {[%emt 0:08:09]} Nxc5 {[%emt 0:03:34]} 24. dxc5 {[%emt 0:00:07]} Qe5 {[%emt 0:00:40]} 25. b6 {[%emt 0:05:09]} Qe2+ {[%emt 0:01:08]} 26. Kg3 {[%emt 0:01:15]} g5 {[%emt 0:06:23]} 27. Qd4 {[%emt 0:13:07]} e5 {[%emt 0:06:34]} 28. Qxd5 {[%emt 0:02:34]} Rd8 {[%emt 0:00:45]} 29. Qc6+ {[%emt 0:01:06]} Ke7 {[%emt 0:01:10]} 30. Nb1 {[%emt 0:05:43]} Rd3 {[%emt 0:05:52]} 31. Qc7+ {[%emt 0:03:07]} Rd7 {[%emt 0:00:37]} 32. Qc6 {[%emt 0:00:05]} Rh6 {[%emt 0:02:03]} 33. Qa8 {[%emt 0:02:56]} f5 {[%emt 0:02:51]} 34. gxf5 {[%emt 0:00:53]} g4 {[%emt 0:00:33]} 35. h4 gxf3 {[%emt 0:01:33]} 36. Rh2 {[%emt 0:04:47]} Qe1+ {[%emt 0:00:56]} 37. Rf2 {[%emt 0:00:07]} e4 {[%emt 0:02:55]} 38. Qg8 {[%emt 0:02:33]} Qg1+ {[%emt 0:01:19]} 39. Kh3 {[%emt 0:00:08]} Rd8 {[%emt 0:02:04]} 40. f6+ {[%emt 0:00:00]} Rxf6 {[%emt 0:00:00]} 41. Qh7 {[%emt 0:01:22]} Rg6 {[%emt 0:00:47]} 0-1

[Event "WYCC 2018 O16"]
[Site "Halkidiki"]
[Date "2018.10.21"]
[Round "3"]
[White "Teclaf, Pawel"]
[Black "Travadon, Loic"]
[Result "1-0"]
[ECO "B57"]
[WhiteElo "2384"]
[BlackElo "2293"]
[Annotator "NA"]
[PlyCount "71"]
[EventDate "2018.10.20"]
[EventType "swiss"]
[EventCountry "GRE"]
[SourceTitle "playchess.com"]
[Source "ChessBase"]
[SourceQuality "1"]
[TimeControl "40/5400+30:1800+30"]

1. e4 {[%emt 0:00:00]} c5 {[%emt 0:00:00]} 2. Nf3 {[%emt 0:00:00]} Nc6 {[%emt 0:00:00]} 3. d4 {[%emt 0:00:00]} cxd4 {[%emt 0:00:00]} 4. Nxd4 {[%emt 0:00:00]} Nf6 {[%emt 0:00:00]} 5. Nc3 {[%emt 0:00:00]} d6 {[%emt 0:00:00]} 6. Bc4 {[%emt 0:00:04]} Bd7 {[%emt 0:00:11]} 7. Bb3 {[%emt 0:03:35]} g6 {[%emt 0:00:21]} 8. Be3 {[%emt 0:01:21]} Bg7 {[%emt 0:00:04]} 9. f3 {[%emt 0:02:39]} O-O {[%emt 0:00:06]} 10. Qd2 {[%emt 0:04:19]} Rc8 {[%emt 0:00:15]} 11. g4 {[%emt 0:05:53]} Ne5 {[%emt 0:09:05]} 12. O-O-O {[%emt 0:18:34]} b5 {[%emt 0:03:36]} 13. g5 {[%emt 0:08:59]} b4 {[%emt 0:00:12]} 14. Nce2 {[%emt 0:03:05]} Ne8 {[%emt 0:03:30]} 15. f4 {[%emt 0:02:46]} Ng4 {[%emt 0:01:15]} 16. Bg1 {[%emt 0:01:01]} e5 {[%emt 0:00:56]} 17. h3 {[%emt 0:03:24]} exd4 {[%emt 0:00:27]} 18. Bxd4 {[%emt 0:02:52] [#]} (18. hxg4 $16 Bxg4 19. Rf1 (19. Nxd4 Bxd4 20. Bxd4 Bxd1 $16) (19. Bxd4 Bxd4 20. Nxd4 Bxd1 $11)) 18... Ngf6 $11 {[%emt 0:01:57]} 19. gxf6 {[%emt 0:00:45]} Nxf6 {[%emt 0:00:06]} 20. e5 {[%emt 0:04:00]} dxe5 {[%emt 0:21:53]} 21. fxe5 {[%emt 0:00:27]} Ne4 {[%emt 0:02:32]} 22. Qf4 {[%emt 0:04:21]} Ng5 {[%emt 0:00:57]} 23. Be3 {[%emt 0:05:11]} Ne6 {[%emt 0:00:16]} 24. Qxb4 {[%emt 0:01:08]} Qc7 {[%emt 0:01:54]} 25. Nc3 {[%emt 0:04:13]} Bc6 {[%emt 0:04:38]} 26. Rhe1 {[%emt 0:01:10]} Bxe5 {[%emt 0:03:02]} 27. Nd5 {[%emt 0:02:00]} Bxd5 {[%emt 0:00:08]} 28. Rxd5 {[%emt 0:00:11]} Bg3 {[%emt 0:03:50]} 29. Red1 {[%emt 0:01:33]} Bf4 {[%emt 0:06:46]} 30. Bxf4 {[%emt 0:04:14]} Nxf4 {[%emt 0:00:05]} 31. Rd7 {[%emt 0:01:20]} Qe5 {[%emt 0:00:01]} 32. Qb7 {[%emt 0:01:57]} Qe3+ {[%emt 0:00:56]} 33. Kb1 {[%emt 0:00:09]} Ne6 {[%emt 0:00:47]} 34. Rxf7 {[%emt 0:00:25]} Qxh3 {[%emt 0:05:16]} 35. Bxe6 {[%emt 0:00:25]} Rcd8 {[%emt 0:00:10]} 36. Rxf8+ {[%emt 0:00:08]} 1-0

[Event "WYCC 2018 O16"]
[Site "Halkidiki"]
[Date "2018.10.21"]
[Round "3"]
[White "Gatineau, Yovann"]
[Black "Sargsyan, Tigran R."]
[Result "0-1"]
[ECO "D16"]
[WhiteElo "2376"]
[BlackElo "2218"]
[Annotator "NA"]
[PlyCount "60"]
[EventDate "2018.10.20"]
[EventType "swiss"]
[EventCountry "GRE"]
[SourceTitle "playchess.com"]
[Source "ChessBase"]
[SourceQuality "1"]
[TimeControl "40/5400+30:1800+30"]

1. d4 {[%emt 0:00:00]} d5 {[%emt 0:00:00]} 2. c4 {[%emt 0:00:00]} c6 {[%emt 0:00:00]} 3. Nc3 {[%emt 0:00:17]} Nf6 {[%emt 0:00:00]} 4. Nf3 {[%emt 0:00:07]} dxc4 {[%emt 0:00:30]} 5. a4 {[%emt 0:00:07]} e6 {[%emt 0:00:17]} 6. e3 {[%emt 0:00:57]} c5 {[%emt 0:00:27]} 7. Bxc4 {[%emt 0:00:06]} Nc6 {[%emt 0:00:09]} 8. O-O {[%emt 0:00:20]} cxd4 {[%emt 0:00:23]} 9. exd4 {[%emt 0:00:04]} Be7 {[%emt 0:00:06]} 10. Qe2 {[%emt 0:00:16]} O-O {[%emt 0:00:13]} 11. Rd1 {[%emt 0:00:04]} Nb4 {[%emt 0:00:14]} 12. a5 {[%emt 0:01:27]} Bd7 {[%emt 0:11:02]} 13. Ne5 {[%emt 0:00:20]} a6 {[%emt 0:08:05]} 14. Bg5 {[%emt 0:15:41] LiveBook: 5 Games} Bc6 {[%emt 0:28:46]} 15. Nxc6 {[%emt 0:06:54]} bxc6 {[%emt 0:00:29]} 16. Ra4 {[%emt 0:01:10]} Qb8 {[%emt 0:06:14]} 17. Ne4 $16 {[%emt 0:04:32]} Nbd5 {[%emt 0:11:59]} 18. Nxf6+ {[%emt 0:04:18]} Bxf6 {[%emt 0:05:40]} 19. Bxf6 {[%emt 0:01:37]} Nxf6 {[%emt 0:00:12]} 20. Bxa6 {[%emt 0:00:33]} Qb3 {[%emt 0:00:47]} 21. Rda1 {[%emt 0:05:11]} Rfb8 {[%emt 0:01:17]} 22. R1a2 {[%emt 0:00:12]} Rb4 {[%emt 0:00:54]} 23. Bc4 {[%emt 0:00:32]} Qxa4 {[%emt 0:00:26]} 24. Rxa4 {[%emt 0:00:04]} Rxa4 {[%emt 0:00:04]} 25. g3 {[%emt 0:00:49]} R4xa5 {[%emt 0:01:47]} 26. Qc2 {[%emt 0:04:49]} Rb8 {[%emt 0:02:53]} 27. Kg2 {[%emt 0:02:22]} Ra7 {[%emt 0:01:00]} 28. Be2 {[%emt 0:01:58]} g6 {[%emt 0:03:06]} 29. Bf3 {[%emt 0:02:52]} Ra2 {[%emt 0:00:41]} 30. Qxc6 {[%emt 0:07:01]} Rbxb2 {[%emt 0:00:27]} 0-1

[Event "WYCC 2018 O16"]
[Site "Halkidiki"]
[Date "2018.10.21"]
[Round "3"]
[White "Schitco, Ivan"]
[Black "Talukdar, Rohan"]
[Result "1-0"]
[ECO "D85"]
[WhiteElo "2376"]
[BlackElo "2279"]
[Annotator "ChessBase"]
[PlyCount "109"]
[EventDate "2018.10.20"]
[EventType "swiss"]
[EventCountry "GRE"]
[SourceTitle "playchess.com"]
[Source "ChessBase"]
[SourceQuality "1"]
[TimeControl "40/5400+30:1800+30"]

1. d4 {[%emt 0:00:00]} Nf6 {[%emt 0:00:00]} 2. c4 {[%emt 0:00:00]} g6 {[%emt 0:00:00]} 3. Nc3 {[%emt 0:00:01]} d5 {[%emt 0:00:00]} 4. cxd5 {[%emt 0:00:19]} Nxd5 {[%emt 0:00:00]} 5. e4 {[%emt 0:00:08]} Nxc3 {[%emt 0:00:20]} 6. bxc3 {[%emt 0:00:14]} Bg7 {[%emt 0:00:05]} 7. Nf3 {[%emt 0:00:08]} c5 {[%emt 0:00:09]} 8. Be3 {[%emt 0:00:15]} Qa5 {[%emt 0:01:24]} 9. Qd2 {[%emt 0:00:34]} O-O {[%emt 0:04:23]} 10. Rc1 {[%emt 0:03:20]} Nd7 {[%emt 0:00:26]} 11. Bd3 {[%emt 0:05:12]} e5 {[%emt 0:02:36]} 12. d5 {[%emt 0:01:20]} f5 {[%emt 0:00:38]} 13. Bh6 {[%emt 0:13:24]} f4 {[%emt 0:13:11]} 14. Bxg7 {[%emt 0:02:35]} Kxg7 {[%emt 0:00:01]} 15. Rb1 {[%emt 0:05:23]} Qc7 {[%emt 0:07:52]} 16. c4 {[%emt 0:04:21]} Nf6 {[%emt 0:00:25]} 17. Qc3 {[%emt 0:01:53]} Re8 {[%emt 0:01:40]} 18. Kd2 {[%emt 0:01:49]} Bg4 {[%emt 0:09:55]} 19. Ne1 {[%emt 0:00:22]} Bd7 {[%emt 0:05:00]} 20. f3 {[%emt 0:00:21]} a6 {[%emt 0:02:26]} 21. a3 {[%emt 0:02:27]} Rab8 {[%emt 0:06:34]} 22. Be2 {[%emt 0:02:31]} b5 {[%emt 0:14:13]} 23. Nd3 {[%emt 0:06:03]} Rbc8 {[%emt 0:00:09]} 24. Rhc1 {[%emt 0:01:03]} Qd6 {[%emt 0:03:04]} 25. Ne1 {[%emt 0:08:40]} Re7 {[%emt 0:09:04]} 26. cxb5 {[%emt 0:03:11]} c4 {[%emt 0:00:03]} 27. bxa6 {[%emt 0:03:09]} Nxd5 {[%emt 0:01:09]} 28. exd5 {[%emt 0:01:58]} Qxd5+ {[%emt 0:00:02]} 29. Kc2 {[%emt 0:00:48]} Bf5+ {[%emt 0:00:23]} 30. Kb2 {[%emt 0:00:43]} Bxb1 {[%emt 0:01:03]} 31. Rxb1 {[%emt 0:02:15]} Qd4 {[%emt 0:02:13]} 32. Rc1 {[%emt 0:06:37]} Qf2 {[%emt 0:05:28]} 33. Rc2 {[%emt 0:01:12]} Qg1 {[%emt 0:00:37]} 34. Ka2 {[%emt 0:04:31]} Kh6 {[%emt 0:01:12]} 35. Bxc4 {[%emt 0:05:58]} Rec7 {[%emt 0:02:02]} 36. Qb4 {[%emt 0:01:09]} Qxh2 {[%emt 0:02:48]} 37. Nd3 {[%emt 0:04:23]} Qh5 {[%emt 0:00:38]} 38. Nb2 {[%emt 0:01:10]} Qf5 {[%emt 0:03:18]} 39. Re2 {[%emt 0:01:36]} Qf6 {[%emt 0:01:32]} 40. Rd2 {[%emt 0:00:00]} Qf5 {[%emt 0:00:00]} 41. Bd5 {[%emt 0:07:22]} Rd7 {[%emt 0:14:00]} 42. Bb7 {[%emt 0:02:30]} Rc1 {[%emt 0:00:52]} 43. a7 {[%emt 0:07:40]} Qf7+ {[%emt 0:03:24]} 44. Bd5 {[%emt 0:00:37]} Rxd5 {[%emt 0:03:13]} 45. Qb3 {[%emt 0:00:09]} Qxa7 {[%emt 0:01:37]} 46. Qxd5 {[%emt 0:00:20]} Qe3 {[%emt 0:01:16]} 47. a4 {[%emt 0:01:28]} Kg5 {[%emt 0:03:44]} 48. Rd3 {[%emt 0:02:46]} Qe2 {[%emt 0:00:15]} 49. Qe4 {[%emt 0:00:32]} Qxe4 {[%emt 0:01:46]} 50. fxe4 {[%emt 0:00:01]} Rc2 {[%emt 0:01:20]} 51. a5 {[%emt 0:02:09]} Rxg2 {[%emt 0:00:07]} 52. Kb3 {[%emt 0:00:51]} Kg4 {[%emt 0:00:35]} 53. a6 {[%emt 0:00:24]} f3 {[%emt 0:00:06]} 54. Nd1 {[%emt 0:00:55]} f2 {[%emt 0:01:05]} 55. a7 {[%emt 0:00:09]} 1-0